Cogmind - Beta 15 @@@ ROGUE MODE // 2025.05.06 @ 13:21:54 Player: jumpy Result: Destroyed by G-47 Trooper with Particle Gun Performance ------------- Evolutions (1) 500 Regions Visited (2) 400 Robots Destroyed (45) 225 Value Destroyed (1034) 1034 Prototype IDs (0) 0 Alien Tech Used (0) 0 Bonus (0) 0 TOTAL SCORE: 2159 Bonus ------- None Cogmind --------- Core Integrity 0/400 Matter 278/300 Energy 250/250 System Corruption 4% Temperature Warm (137) Movement Treading (240) Ox1 Location -9/Materials Parts ------- > --- POWER (1) -------- Ion Engine > --- PROPULSION (2) --- Light Treads > --- UTILITY (4) ------ Large Storage Unit > --- WEAPON (2) ------- Medium Laser Small Laser > --- INVENTORY (15) --- Ion Engine Light Treads Wheel Compact Wheel Improved Terrain Scanner Seismic Detector Small Laser Small Laser Particle Gun Heavy Assault Rifle Improved Light Cannon Peak State ------------ > --- POWER ------------ Improved Ion Engine > --- PROPULSION ------- Light Treads Light Treads > --- UTILITY ---------- Large Storage Unit Seismic Detector Improved Targeting Computer Light Armor Plating > --- WEAPON ----------- Small Laser Beam Rifle > --- INVENTORY -------- Ion Engine Light Ion Engine Improved Ion Engine Wheel Compact Wheel Improved Terrain Scanner Seismic Detector Medium Laser Small Laser [Rating: 13] Favorites ----------- Power Ion Engine Engine Ion Engine Propulsion Light Treads Treads Light Treads Utility Seismic Detector Device Seismic Detector Storage Large Storage Unit Processor Improved Targeting Computer Protection Light Armor Plating Weapon Small Laser Energy Gun Small Laser Ballistic Cannon Improved Light Cannon Build | -11 -10 -9 ------- Run | Yrd Mat Mat Slots Evolved 2 | . . 2 Power . | . . . Propulsion . | . . . Utility 2 | . . 2 Weapon . | . . . Parts Attached 29 | 9 1 19 Power 5 | 2 . 3 Engine 5 | 2 . 3 Core . | . . . Reactor . | . . . Propulsion 8 | 2 . 6 Treads 8 | 2 . 6 Leg . | . . . Wheel . | . . . Hover . | . . . Flight . | . . . Utility 7 | 2 . 5 Device 2 | 1 . 1 Storage 2 | 1 . 1 Processor 1 | . . 1 Hackware . | . . . Protection 2 | . . 2 Artifact . | . . . Weapon 9 | 3 1 5 Energy Gun 8 | 3 1 4 Energy Cannon . | . . . Ballistic Gun . | . . . Ballistic Cannon 1 | . . 1 Launcher . | . . . Special Weapon . | . . . Impact Weapon . | . . . Slashing Weapon . | . . . Piercing Weapon . | . . . Special Melee Weapon . | . . . Unidentified Prototypes . | . . . Parts Lost 14 | . . 14 Power 2 | . . 2 Propulsion 6 | . . 6 Utility 5 | . . 5 Weapon 1 | . . 1 Highest Loss Streak 3 | . . 3 To Critical Strikes . | . . . Average Backups 7 | 3 7 9 Power 1 | . 1 2 Propulsion 2 | 1 2 2 Utility 1 | . 2 2 Weapon 2 | . 1 2 Tool/Special . | . . . Unused Backups 9 | . . 9 Power 1 | . . 1 Propulsion 2 | . . 2 Utility 2 | . . 2 Weapon 4 | . . 4 Tool/Special . | . . . Average Slot Usage (%) 86 | . 100 79 Engine 11 | . 14 10 Treads 23 | . 28 20 Device 9 | . 14 7 Storage 11 | . 14 11 Processor 2 | . . 4 Protection 3 | . . 4 Energy Gun 21 | . 28 17 Ballistic Cannon 2 | . . 3 Peak Build Rating 13 | 7 8 13 Average Rating 8 | 5 7 9 On Entrance 5 | . 7 8 Naked Turns . | . . . Heaviest Build 35 | 14 14 35 Greatest Support 40 | 40 40 40 Greatest Overweight (x) 1 | . . 1 Average Overweight (x) . | . . . Largest Inventory Capacity 15 | 8 8 15 Average Capacity 11 | 7 8 14 Most Carried 13 | 6 8 13 Average Carried 7 | 4 7 9 Final Capacity 15 | 8 8 15 Final Carried 11 | 6 8 11 Class Distribution -------------------- 78% | Mutant 21% | Scavenger-Mutant Dominant Class ---------------- Mutant | -10/Materials Mutant | -9/Materials Resources | -11 -10 -9 ----------- Run | Yrd Mat Mat Matter Collected 611 | 290 . 321 Remotely . | . . . Salvage Created 1483 | 242 139 1102 Parts 106 | 27 18 61 Haulers Intercepted 2 | . . 2 Recyclers Shooed 4 | . . 4 Parts Field Recycled . | . . . Retrieved Matter . | . . . Parts Self-Destructed . | . . . Prevented . | . . . Kills | -11 -10 -9 ------- Run | Yrd Mat Mat Combat Hostiles Destroyed 29 | . 7 22 Guns 24 | . 7 17 Cannons 3 | . . 3 Classes Destroyed 9 | 3 3 3 Worker 3 | 3 . . Tunneler 7 | 7 . . Hauler 2 | . . 2 Recycler 2 | 1 . 1 Watcher 2 | . 1 1 Swarmer 6 | . 6 . Grunt 15 | . 1 14 Brawler 1 | . . 1 Sentry 7 | . . 7 Best Kill Streak 4 | 3 3 4 Combat Bots Only 4 | . 3 4 Max Kills in Single Turn 1 | 1 1 1 Gunslinging . | . . . Exploded . | . . . Melee . | . . . Uniques/NPCs Destroyed . | . . . Combat | -11 -10 -9 -------- Run | Yrd Mat Mat Hostile Shots Fired 236 | . 12 224 Missed 54 | . 4 50 Hits 182 | . 8 174 Melee 2 | . . 2 Projectile 180 | . 8 172 Critical Strikes 10 | . 1 9 Damage Taken 2374 | . 70 2304 Core 415 | . 10 405 Absorbed by Shields . | . . . Core Remaining (%) 98 | 100 96 . Volleys Fired 156 | 24 18 114 Largest 2 | 2 2 2 Hottest 96 | 90 90 96 Shots Fired 296 | 48 36 212 Gun 255 | 48 36 171 Cannon 41 | . . 41 Launcher . | . . . Special . | . . . Kinetic 41 | . . 41 Thermal 255 | 48 36 171 Explosive . | . . . Electromagnetic . | . . . Robot Hit Streak 21 | 7 4 21 Robot Miss Streak 6 | 2 3 6 Penetration Max . | . . . Secondary Targets 2 | . . 2 Max Gunslinging Chain 1 | . . 1 Shots Hit Robots 195 | 28 20 147 Core Hits 79 | 12 10 57 Critical Kills . | . . . Critical Parts Destroyed . | . . . Critical Strikes 5 | 1 . 4 Burn 5 | 1 . 4 Melee Attacks . | . . . Impact . | . . . Slashing . | . . . Piercing . | . . . Sneak Attacks . | . . . Combat Hostiles . | . . . Follow-up Attacks . | . . . Damage Inflicted 2623 | 329 241 2053 Guns 1990 | 329 238 1423 Cannons 613 | . . 613 Explosions . | . . . Melee . | . . . Ramming 20 | . 3 17 Kinetic 613 | . . 613 Thermal 1990 | 329 238 1423 Explosive . | . . . Electromagnetic . | . . . Impact . | . . . Slashing . | . . . Piercing . | . . . Highest Corruption 4 | . . 4 Average Corruption 4 | . . 4 Corruption Purged . | . . . Corruption Blocked . | . . . Effects 9 | . . 9 Message Errors 1 | . . 1 Matter Fused 1 | . . 1 Energy Discharges 3 | . . 3 Parts Rejected 1 | . . 1 Data Loss (minor) 1 | . . 1 Alerts 1 | . . 1 Weapon Failures 1 | . . 1 Overload Shots . | . . . Overflow Damage 3 | . . 3 Projectiles 3 | . . 3 Explosions . | . . . Melee . | . . . Knockbacks 6 | . . 6 Impact . | . . . Kinetic 6 | . . 6 Secondary . | . . . Self-Inflicted Damage . | . . . Shots . | . . . Rammed 6 | . 1 5 Targets Rammed 6 | . 1 5 Kicked . | . . . Crushed . | . . . Highest Temperature 336 | 180 150 336 Average Temperature 79 | 57 43 91 Received Heat Transfer 1200 | . 12 1188 Effects 3 | . . 3 Interference 3 | . . 3 Siege Activations . | . . . Martial Activations . | . . . Shielding Activations . | . . . Robots Disrupted . | . . . Combat Hostiles . | . . . Robots Corrupted . | . . . Combat Hostiles . | . . . Parts Fried . | . . . Impact Corruptions . | . . . Robots Melted 2 | . . 2 Combat Hostiles 2 | . . 2 Parts Melted 17 | 2 1 14 Heat Transferred 5483 | 990 620 3873 Parts Sabotaged . | . . . Parts Stolen . | . . . Parts Stripped . | . . . Power Chain Reactions . | . . . Alert | -11 -10 -9 ------- Run | Yrd Mat Mat Maximum Alert Level 1 | . . 1 Low Security (%) 98 | 100 100 96 Level 1 1 | . . 3 Level 2 . | . . . Level 3 . | . . . Level 4 . | . . . Level 5 . | . . . High Security . | . . . Max Security . | . . . Peak Influence 203 | 15 127 203 Initial 7 | . . 7 Average 76 | 1 54 117 Influence Increases 906 | 55 197 654 Destroy 0b10 Robot/C 580 | . 140 440 Destroy 0b10 Robot/NC 80 | 55 5 20 Destroy Leader 138 | . 22 116 Destroy Structure 3 | . . 3 Lose Combat Pursuer 105 | . 30 75 Influence Decreases 755 | 55 180 520 Entered New Map 10 | . . 10 Time Decay 605 | 55 180 370 Lost Part 140 | . . 140 Squads Dispatched 3 | . 1 2 Investigation 1 | . . 1 Extermination . | . . . Reinforcement 2 | . 1 1 Assault . | . . . Garrison . | . . . Intercept . | . . . Searches Triggered . | . . . Construction Impeded . | . . . Haulers Reinforced . | . . . Active Scanning Responses . | . . . Cargo Convoy Interrupts . | . . . Stealth | -11 -10 -9 --------- Run | Yrd Mat Mat Distress Signals 3 | . 1 2 Communications Jammed . | . . . Distress Signals . | . . . Times Spotted 51 | . 11 40 Peak Tracking Total 7 | . 5 7 Tactical Retreats 4 | . 1 3 Traps | -11 -10 -9 ------- Run | Yrd Mat Mat Traps Triggered . | . . . Indirectly . | . . . Trap Hack Attempts . | . . . Triggered . | . . . Disarmed . | . . . Reprogrammed . | . . . Reused . | . . . Traps Extracted . | . . . Installed . | . . . Triggered . | . . . Machines | -11 -10 -9 ---------- Run | Yrd Mat Mat Machines Disabled . | . . . Max in Single Turn . | . . . Machines Repaired . | . . . Machines Dismantled . | . . . Machines Sabotaged . | . . . Overloaded Fab Kills . | . . . Hacking | -11 -10 -9 --------- Run | Yrd Mat Mat Machines Accessed 1 | . . 1 Terminals . | . . . Fabricators . | . . . Repair Stations . | . . . Recycling Units . | . . . Scanalyzers 1 | . . 1 Garrison Access . | . . . Total Hacks 4 | . . 4 Successful 2 | . . 2 Failed 2 | . . 2 Catastrophic . | . . . Database Lockouts . | . . . Manual . | . . . Terminals . | . . . Fabricators . | . . . Repair Stations . | . . . Recycling Units . | . . . Scanalyzers 4 | . . 4 Garrison Access . | . . . Terminal Hacks . | . . . Fabricator Hacks . | . . . Repair Station Hacks . | . . . Recycling Unit Hacks . | . . . Scanalyzer 2 | . . 2 Insert Component 1 | . . 1 Analyze 1 | . . 1 Garrison Access Hacks . | . . . Unauthorized Hacks . | . . . Terminals . | . . . Fabricators . | . . . Repair Stations . | . . . Recycling Units . | . . . Scanalyzers . | . . . Garrison Access . | . . . Data Cores Recovered . | . . . Used . | . . . Hacking Detections 1 | . . 1 Full Trace Events 1 | . . 1 Feedback Events . | . . . Feedback Blocked . | . . . Robot Schematics Acquired . | . . . Robots Built . | . . . Authchips . | . . . Time . | . . . Total Robot Build Rating . | . . . Part Schematics Acquired 1 | . . 1 Parts Built . | . . . Authchips . | . . . Time . | . . . Total Part Build Rating . | . . . Parts Repaired . | . . . Time . | . . . Parts Recycled . | . . . Recycled Matter . | . . . Retrieved Matter . | . . . Retrieved Components . | . . . Parts Scanalyzed 1 | . . 1 Part Schematics Acquired 1 | . . 1 Parts Damaged . | . . . Bothacking | -11 -10 -9 ------------ Run | Yrd Mat Mat Used RIF Installer . | . . . Robots Hacked . | . . . Non-combat . | . . . Combat . | . . . Robot Hacks Applied . | . . . Relay Couplers Released . | . . . Fabnet Peak Effective % . | . . . Robots Rewired . | . . . Allies Hacked . | . . . Hacks Repelled . | . . . Allies | -11 -10 -9 -------- Run | Yrd Mat Mat Total Allies . | . . . Largest Group . | . . . Highest-Rated Group . | . . . Highest-Rated Ally . | . . . Total Orders . | . . . Ally Attacks . | . . . Total Damage . | . . . Kills . | . . . Allies Corrupted . | . . . Allies Melted . | . . . Intel | -11 -10 -9 ------- Run | Yrd Mat Mat Active Infowar (turns) 1246 | 111 490 645 Seismic 1246 | 111 490 645 Robot Analysis Total . | . . . Derelict Logs Recovered . | . . . Drone Launches . | . . . Drone Recoveries . | . . . Exploration | -11 -10 -9 ------------- Run | Yrd Mat Mat Turns Passed 1925 | 423 490 1012 Spaces Moved 824 | 211 260 353 Core 4 | 4 . . Treads 820 | 207 260 353 Legs . | . . . Wheels . | . . . Hover . | . . . Flight . | . . . Fastest Speed 50 | 50 160 160 Average Speed 161 | 157 160 164 Slowest Speed 240 | 160 160 240 Overloaded Moves . | . . . Propulsion Burnouts . | . . . Robots Hopped . | . . . Potential Cave-ins . | . . . Cave-ins Triggered . | . . . Exploration Rate (%) 29 | 13 49 25 Regions Visited 2 Branch Regions . Pre-discovered Areas . | . . . Known Exits Taken . | . . . Unknown Exits Taken 2 | 1 1 . Scrap Searched . | . . . Spaces Dug . | . . . Terrain Destroyed . | . . . Melee . | . . . Projectile . | . . . AOE . | . . . Terrain Rammed . | . . . Walls Destroyed . | . . . Machines Disabled . | . . . Actions | -11 -10 -9 --------- Run | Yrd Mat Mat Total 1110 | 248 299 563 Wait 64 | . 15 49 Move 822 | 210 259 353 Hop . | . . . Pick Up 20 | 5 3 12 Fast Attach 14 | 7 . 7 Attach 7 | . . 7 Detach . | . . . Swap 12 | 2 1 9 Drop 9 | . 2 7 Fire 156 | 24 18 114 Melee . | . . . Ram . | . . . Kick . | . . . Crush 6 | . 1 5 Escape Stasis . | . . . Rewire . | . . . Trap . | . . . Miscellaneous . | . . . Route ------- -11/Scrapyard -10/Materials (discovered 2 exits: *Mat / [*Min]) -9/Materials (discovered 1 exit: [*Min]) History --------- Turn | Location | Event 17 | -11/Scrapyard | Discovered new exit (range 15) 424 | -11/Scrapyard | Entered Materials 425 | -10/Materials | Build established: Mutant 695 | -10/Materials | Discovered new exit (range 16) 807 | -10/Materials | Discovered new exit (range 13) 914 | -10/Materials | Entered another Materials area 914 | -9/Materials | Evolved 2 slots: Utility x2 1141 | -9/Materials | Lost 3 parts (2n1u) 1465 | -9/Materials | Core integrity fell below 50% 1552 | -9/Materials | Discovered new exit (range 9) 1574 | -9/Materials | Core integrity fell below 20% 1905 | -9/Materials | Lost 3 parts (1p1u1w) 1926 | -9/Materials | Destroyed by G-47 Trooper with Particle Gun Last Messages --------------- 01857_ Critical hit (Burn: +37). 01858_ Destroyed Lgt. Nuclear Core. 01858_ G-47 Trooper knocked back. 01864_ System corrupted: Lgt. Treads rejected. 01866_ Imp. Light Cannon destroyed. 01873_ Acquired 29 matter. 01874_ Lgt. Armor Plating destroyed. 01882_ M-13 Machinist repairs G-47 Trooper. 01884_ M-13 Machinist fits Backup Power I on G-47 Trooper. 01886_ NM